[Event "*** SCC Grand Prix: Titled Tuesday Blitz"]
[Site "Chess.com"]
[Date "2020.06.09"]
[Round "10"]
[White "SergeyKarjakin"]
[Black "kuban1991"]
[Result "1/2-1/2"]
[WhiteElo "2957"]
[BlackElo "2793"]
[TimeControl "180+1"]
[EndTime "10:58:26 PDT"]
[Termination "Game drawn - insufficient material"]

1. e4 {[%clk 0:03:00.9]} 1... e6 {[%clk 0:03:00]} 2. d3 {[%clk 0:02:59.7]} 2...
d5 {[%clk 0:03:00.1]} 3. Nd2 {[%clk 0:03:00.6]} 3... Nf6 {[%clk 0:03:00.3]} 4.
Ngf3 {[%clk 0:03:00.2]} 4... Be7 {[%clk 0:03:00.8]} 5. g3 {[%clk 0:02:55]} 5...
b6 {[%clk 0:03:00.5]} 6. Bg2 {[%clk 0:02:43.6]} 6... Bb7 {[%clk 0:03:00.5]} 7.
e5 {[%clk 0:02:35.2]} 7... Nfd7 {[%clk 0:03:00.4]} 8. O-O {[%clk 0:02:33.6]}
8... c5 {[%clk 0:03:00.5]} 9. Re1 {[%clk 0:02:33.1]} 9... Nc6 {[%clk 0:02:59.9]}
10. Nf1 {[%clk 0:02:32.1]} 10... Qc7 {[%clk 0:02:59.9]} 11. Bf4 {[%clk
0:02:30.4]} 11... h6 {[%clk 0:02:59.5]} 12. h4 {[%clk 0:02:29.6]} 12... O-O-O
{[%clk 0:02:59.1]} 13. Ne3 {[%clk 0:02:23.2]} 13... g5 {[%clk 0:02:18.6]} 14.
hxg5 {[%clk 0:02:22.7]} 14... hxg5 {[%clk 0:02:19]} 15. Nxg5 {[%clk 0:02:23.1]}
15... Bxg5 {[%clk 0:02:02.7]} 16. Bxg5 {[%clk 0:02:24]} 16... Rdg8 {[%clk
0:02:01.4]} 17. Bf4 {[%clk 0:02:23.6]} 17... Ndxe5 {[%clk 0:01:48.3]} 18. c3
{[%clk 0:02:01.4]} 18... d4 {[%clk 0:01:32.2]} 19. Nc4 {[%clk 0:01:46.4]} 19...
f6 {[%clk 0:01:28.7]} 20. cxd4 {[%clk 0:01:37.4]} 20... Nxd4 {[%clk 0:01:28.2]}
21. Nxe5 {[%clk 0:01:36]} 21... Bxg2 {[%clk 0:01:11.6]} 22. Kxg2 {[%clk
0:01:36.9]} 22... Qb7+ {[%clk 0:00:57.2]} 23. Re4 {[%clk 0:00:38.3]} 23... f5
{[%clk 0:00:57]} 24. f3 {[%clk 0:00:36.5]} 24... fxe4 {[%clk 0:00:25.4]} 25.
dxe4 {[%clk 0:00:35.1]} 25... Qh7 {[%clk 0:00:24.4]} 26. Qh1 {[%clk 0:00:30.8]}
26... Qxh1+ {[%clk 0:00:22]} 27. Rxh1 {[%clk 0:00:29.4]} 27... Rxh1 {[%clk
0:00:22.2]} 28. Kxh1 {[%clk 0:00:30.3]} 28... Ne2 {[%clk 0:00:19.8]} 29. Kh2
{[%clk 0:00:27.7]} 29... b5 {[%clk 0:00:17]} 30. Ng4 {[%clk 0:00:23]} 30... Nxf4
{[%clk 0:00:13.7]} 31. gxf4 {[%clk 0:00:23.9]} 31... c4 {[%clk 0:00:13.5]} 32.
Kg3 {[%clk 0:00:21.8]} 32... b4 {[%clk 0:00:13.2]} 33. Kf2 {[%clk 0:00:21.9]}
33... Kb7 {[%clk 0:00:10.5]} 34. Ke3 {[%clk 0:00:21.1]} 34... Rd8 {[%clk
0:00:10.4]} 35. Ke2 {[%clk 0:00:03.7]} 35... c3 {[%clk 0:00:10.5]} 36. bxc3
{[%clk 0:00:04.6]} 36... bxc3 {[%clk 0:00:11]} 37. Ne3 {[%clk 0:00:05]} 37...
Rd2+ {[%clk 0:00:07.5]} 38. Ke1 {[%clk 0:00:05.1]} 38... Rd3 {[%clk 0:00:07.9]}
39. Ke2 {[%clk 0:00:05.1]} 39... Rd2+ {[%clk 0:00:08]} 40. Ke1 {[%clk
0:00:05.3]} 40... Kc6 {[%clk 0:00:08.2]} 41. f5 {[%clk 0:00:04.4]} 41... exf5
{[%clk 0:00:07.6]} 42. exf5 {[%clk 0:00:04.6]} 42... Kd7 {[%clk 0:00:06.3]} 43.
Nc4 {[%clk 0:00:02.2]} 43... Rxa2 {[%clk 0:00:04.3]} 44. Kd1 {[%clk 0:00:02]}
44... Ke7 {[%clk 0:00:04.7]} 45. Ne3 {[%clk 0:00:02.1]} 45... Kf6 {[%clk
0:00:04.6]} 46. Nd5+ {[%clk 0:00:02.3]} 46... Kxf5 {[%clk 0:00:05.1]} 47. Nxc3
{[%clk 0:00:03.2]} 47... Rf2 {[%clk 0:00:05.2]} 48. Kc1 {[%clk 0:00:02]} 48...
Rxf3 {[%clk 0:00:05.7]} 49. Nb5 {[%clk 0:00:02.2]} 49... a6 {[%clk 0:00:05.4]}
50. Nd4+ {[%clk 0:00:02.3]} 50... Ke4 {[%clk 0:00:04.5]} 51. Nxf3 {[%clk
0:00:03.2]} 51... Kxf3 {[%clk 0:00:05.4]} 52. Kb2 {[%clk 0:00:03.6]} 52... Ke4
{[%clk 0:00:04.6]} 53. Ka3 {[%clk 0:00:04.5]} 53... Kd5 {[%clk 0:00:04.9]} 54.
Kb4 {[%clk 0:00:05.4]} 54... Kd4 {[%clk 0:00:05.5]} 55. Ka5 {[%clk 0:00:06.3]}
55... Kd3 {[%clk 0:00:06.4]} 56. Kxa6 {[%clk 0:00:06.9]} 1/2-1/2

[Event "*** SCC Grand Prix: Titled Tuesday Blitz"]
[Site "Chess.com"]
[Date "2020.06.09"]
[Round "10"]
[White "PlayChessSimple"]
[Black "mbojan"]
[Result "0-1"]
[WhiteElo "2518"]
[BlackElo "2644"]
[TimeControl "180+1"]
[EndTime "10:58:26 PDT"]
[Termination "mbojan won on time"]

1. e4 {[%clk 0:03:00.9]} 1... c5 {[%clk 0:02:59.6]} 2. Nf3 {[%clk 0:03:00.6]}
2... Nc6 {[%clk 0:02:59.5]} 3. c3 {[%clk 0:03:00.7]} 3... Nf6 {[%clk 0:02:58.8]}
4. e5 {[%clk 0:03:00.5]} 4... Nd5 {[%clk 0:02:58.8]} 5. Bc4 {[%clk 0:03:01.2]}
5... Nb6 {[%clk 0:02:56.5]} 6. Bb3 {[%clk 0:03:01.7]} 6... c4 {[%clk 0:02:55.4]}
7. Bc2 {[%clk 0:03:01.8]} 7... d6 {[%clk 0:02:55.6]} 8. exd6 {[%clk 0:03:01]}
8... e5 {[%clk 0:02:55.1]} 9. O-O {[%clk 0:02:57.4]} 9... Bxd6 {[%clk
0:02:54.4]} 10. b3 {[%clk 0:02:57.2]} 10... O-O {[%clk 0:02:51.9]} 11. Na3
{[%clk 0:02:55.4]} 11... Be6 {[%clk 0:02:48.3]} 12. bxc4 {[%clk 0:02:42.5]}
12... Nxc4 {[%clk 0:02:47.7]} 13. Nxc4 {[%clk 0:02:42.7]} 13... Bxc4 {[%clk
0:02:48.6]} 14. d3 {[%clk 0:02:38.1]} 14... Bd5 {[%clk 0:02:44.2]} 15. Ng5
{[%clk 0:02:34.8]} 15... Be7 {[%clk 0:02:35.6]} 16. Ne4 {[%clk 0:01:45.8]} 16...
Kh8 {[%clk 0:02:14.3]} 17. f4 {[%clk 0:01:36.7]} 17... Bxe4 {[%clk 0:02:11.1]}
18. dxe4 {[%clk 0:01:36.3]} 18... Qxd1 {[%clk 0:01:47.6]} 19. Rxd1 {[%clk
0:01:35.8]} 19... exf4 {[%clk 0:01:46.3]} 20. Bxf4 {[%clk 0:01:35.1]} 20... Bf6
{[%clk 0:01:46.3]} 21. Rd7 {[%clk 0:01:32.9]} 21... Bxc3 {[%clk 0:01:42.5]} 22.
Rf1 {[%clk 0:01:27]} 22... Bd4+ {[%clk 0:01:03.6]} 23. Kh1 {[%clk 0:01:25.6]}
23... Be5 {[%clk 0:01:02.7]} 24. Be3 {[%clk 0:01:17.6]} 24... f6 {[%clk
0:00:43.8]} 25. Rxb7 {[%clk 0:01:13.8]} 25... Nd4 {[%clk 0:00:43.9]} 26. Bxd4
{[%clk 0:01:02.4]} 26... Bxd4 {[%clk 0:00:44.8]} 27. Rd1 {[%clk 0:01:02.8]}
27... Rfd8 {[%clk 0:00:40.9]} 28. g3 {[%clk 0:00:59.7]} 28... Bb6 {[%clk
0:00:37]} 29. Rdd7 {[%clk 0:00:56.3]} 29... Rxd7 {[%clk 0:00:35.6]} 30. Rxd7
{[%clk 0:00:57.2]} 30... Rc8 {[%clk 0:00:35.1]} 31. Bb3 {[%clk 0:00:54.1]} 31...
h5 {[%clk 0:00:21.3]} 32. Kg2 {[%clk 0:00:53.6]} 32... Kh7 {[%clk 0:00:18]} 33.
Kf3 {[%clk 0:00:47.9]} 33... Rc3+ {[%clk 0:00:17.3]} 34. Kf4 {[%clk 0:00:45.9]}
34... Kh6 {[%clk 0:00:02.8]} 35. Kf5 {[%clk 0:00:40.6]} 35... Rf3+ {[%clk
0:00:01.4]} 36. Ke6 {[%clk 0:00:39.4]} 36... Rf2 {[%clk 0:00:01.9]} 37. h4
{[%clk 0:00:36.1]} 37... Rf3 {[%clk 0:00:02.1]} 38. Rd5 {[%clk 0:00:26.3]} 38...
Rxg3 {[%clk 0:00:01.7]} 39. Bd1 {[%clk 0:00:26.4]} 39... g6 {[%clk 0:00:01.6]}
40. Kxf6 {[%clk 0:00:24.4]} 40... Rg1 {[%clk 0:00:01.6]} 41. e5 {[%clk
0:00:17.3]} 41... Bf2 {[%clk 0:00:01.9]} 42. e6 {[%clk 0:00:12.3]} 42... Bxh4+
{[%clk 0:00:02.6]} 43. Kf7 {[%clk 0:00:12.5]} 43... Rf1+ {[%clk 0:00:03.4]} 44.
Kg8 {[%clk 0:00:12.3]} 44... Re1 {[%clk 0:00:03.6]} 45. Bb3 {[%clk 0:00:08.7]}
45... Rxe6 {[%clk 0:00:03.8]} 46. Rxh5+ {[%clk 0:00:08.7]} 46... gxh5 {[%clk
0:00:03.9]} 47. Bxe6 {[%clk 0:00:08.9]} 47... Bf2 {[%clk 0:00:04.8]} 48. Kf7
{[%clk 0:00:06.4]} 48... Kg5 {[%clk 0:00:05.3]} 49. Bh3 {[%clk 0:00:05.7]} 49...
Kh4 {[%clk 0:00:05.5]} 50. Bd7 {[%clk 0:00:04.2]} 50... Kg3 {[%clk 0:00:05.8]}
51. Ke6 {[%clk 0:00:04.5]} 51... h4 {[%clk 0:00:06.3]} 52. Kf5 {[%clk
0:00:04.1]} 52... h3 {[%clk 0:00:06.8]} 53. Kg5 {[%clk 0:00:02.3]} 53... Bb6
{[%clk 0:00:07.1]} 54. Bc6 {[%clk 0:00:01.1]} 54... h2 {[%clk 0:00:07.6]} 0-1

[Event "*** SCC Grand Prix: Titled Tuesday Blitz"]
[Site "Chess.com"]
[Date "2020.06.09"]
[Round "10"]
[White "ljuks68"]
[Black "Smile2005"]
[Result "1-0"]
[WhiteElo "2366"]
[BlackElo "2499"]
[TimeControl "180+1"]
[EndTime "10:58:27 PDT"]
[Termination "ljuks68 won on time"]

1. e4 {[%clk 0:03:00]} 1... d5 {[%clk 0:02:56.2]} 2. exd5 {[%clk 0:02:59.5]}
2... Nf6 {[%clk 0:02:56.1]} 3. d4 {[%clk 0:02:58.6]} 3... Nxd5 {[%clk
0:02:51.9]} 4. c4 {[%clk 0:02:58.4]} 4... Nb6 {[%clk 0:02:52.2]} 5. Nf3 {[%clk
0:02:58.4]} 5... Bg4 {[%clk 0:02:52.3]} 6. c5 {[%clk 0:02:53.5]} 6... N6d7
{[%clk 0:02:52.1]} 7. Qb3 {[%clk 0:02:51.5]} 7... Nc6 {[%clk 0:02:51.8]} 8. Be3
{[%clk 0:02:31.1]} 8... e6 {[%clk 0:02:49.5]} 9. Be2 {[%clk 0:02:25.6]} 9... Rb8
{[%clk 0:02:47.5]} 10. Nc3 {[%clk 0:02:22]} 10... Be7 {[%clk 0:02:47.1]} 11.
O-O-O {[%clk 0:02:15.2]} 11... O-O {[%clk 0:02:46]} 12. d5 {[%clk 0:02:00.4]}
12... exd5 {[%clk 0:02:45.1]} 13. Nxd5 {[%clk 0:02:00.4]} 13... Bxc5 {[%clk
0:02:41.2]} 14. Bxc5 {[%clk 0:01:40.2]} 14... Nxc5 {[%clk 0:02:41.1]} 15. Qa3
{[%clk 0:01:40]} 15... Bxf3 {[%clk 0:02:14.1]} 16. Bxf3 {[%clk 0:01:39.3]} 16...
Qg5+ {[%clk 0:02:13.7]} 17. Kb1 {[%clk 0:01:39]} 17... Ne6 {[%clk 0:02:10.2]}
18. Ka1 {[%clk 0:01:11.6]} 18... Ncd4 {[%clk 0:01:49]} 19. Qc3 {[%clk
0:01:08.6]} 19... c6 {[%clk 0:01:43.9]} 20. h4 {[%clk 0:00:59.5]} 20... Qd8
{[%clk 0:01:25.5]} 21. Ne3 {[%clk 0:00:45]} 21... Qb6 {[%clk 0:01:08.6]} 22. Be4
{[%clk 0:00:41.3]} 22... Rbd8 {[%clk 0:00:53.9]} 23. Bb1 {[%clk 0:00:38.6]}
23... Qc5 {[%clk 0:00:37.7]} 24. Qd3 {[%clk 0:00:19.4]} 24... g6 {[%clk
0:00:37]} 25. Rc1 {[%clk 0:00:18.2]} 25... Qe7 {[%clk 0:00:25.7]} 26. Qc3 {[%clk
0:00:17.9]} 26... Nb5 {[%clk 0:00:21.5]} 27. Qe5 {[%clk 0:00:15]} 27... Qd6
{[%clk 0:00:19.8]} 28. Qf6 {[%clk 0:00:13]} 28... Ned4 {[%clk 0:00:18.7]} 29.
Qg5 {[%clk 0:00:10.7]} 29... Ne6 {[%clk 0:00:13.2]} 30. Qf6 {[%clk 0:00:09.7]}
30... Ned4 {[%clk 0:00:10.2]} 31. Qg5 {[%clk 0:00:09.5]} 31... f6 {[%clk
0:00:07.6]} 32. Qh6 {[%clk 0:00:08.4]} 32... Qe7 {[%clk 0:00:07.7]} 33. h5
{[%clk 0:00:07.5]} 33... Qg7 {[%clk 0:00:08.1]} 34. Qf4 {[%clk 0:00:06.2]} 34...
g5 {[%clk 0:00:05.8]} 35. Qg3 {[%clk 0:00:04.8]} 35... Rfe8 {[%clk 0:00:05.5]}
36. h6 {[%clk 0:00:04.6]} 36... Qf7 {[%clk 0:00:05.6]} 37. f4 {[%clk 0:00:04.4]}
37... Kh8 {[%clk 0:00:03]} 38. fxg5 {[%clk 0:00:04.2]} 38... Rg8 {[%clk
0:00:02.9]} 39. g6 {[%clk 0:00:04.2]} 39... Rxg6 {[%clk 0:00:02.8]} 40. Bxg6
{[%clk 0:00:03.1]} 40... Qxg6 {[%clk 0:00:02.9]} 41. Qxg6 {[%clk 0:00:02.9]}
41... hxg6 {[%clk 0:00:03.4]} 42. Rhd1 {[%clk 0:00:02.5]} 42... f5 {[%clk
0:00:02.7]} 43. Kb1 {[%clk 0:00:02.6]} 43... c5 {[%clk 0:00:02.2]} 44. a4 {[%clk
0:00:01.7]} 1-0

[Event "*** SCC Grand Prix: Titled Tuesday Blitz"]
[Site "Chess.com"]
[Date "2020.06.09"]
[Round "10"]
[White "The_Machine04"]
[Black "AungTZ"]
[Result "1/2-1/2"]
[WhiteElo "2269"]
[BlackElo "2123"]
[TimeControl "180+1"]
[EndTime "10:58:31 PDT"]
[Termination "Game drawn by stalemate"]

1. d4 {[%clk 0:03:00.9]} 1... Nf6 {[%clk 0:02:59.1]} 2. Bg5 {[%clk 0:02:59.6]}
2... Ne4 {[%clk 0:02:58.4]} 3. Bf4 {[%clk 0:02:58.8]} 3... d5 {[%clk 0:02:59.3]}
4. e3 {[%clk 0:02:57.1]} 4... e6 {[%clk 0:02:57.4]} 5. Bd3 {[%clk 0:02:56.3]}
5... Be7 {[%clk 0:02:54.3]} 6. Bxe4 {[%clk 0:02:51.6]} 6... dxe4 {[%clk
0:02:53.5]} 7. Nc3 {[%clk 0:02:44.4]} 7... f5 {[%clk 0:02:52.7]} 8. Nge2 {[%clk
0:02:43.2]} 8... O-O {[%clk 0:02:51.8]} 9. Qd2 {[%clk 0:02:36.1]} 9... Nd7
{[%clk 0:02:48]} 10. O-O-O {[%clk 0:02:28]} 10... Nb6 {[%clk 0:02:45.8]} 11. d5
{[%clk 0:02:20.2]} 11... exd5 {[%clk 0:01:50.7]} 12. Nxd5 {[%clk 0:02:15.6]}
12... Nxd5 {[%clk 0:01:48.2]} 13. Qxd5+ {[%clk 0:02:16.5]} 13... Qxd5 {[%clk
0:01:42.3]} 14. Rxd5 {[%clk 0:02:15.8]} 14... Be6 {[%clk 0:01:41.8]} 15. Re5
{[%clk 0:02:09.2]} 15... Kf7 {[%clk 0:01:33.8]} 16. Nd4 {[%clk 0:02:05.2]} 16...
Bc8 {[%clk 0:01:27.1]} 17. Nxf5 {[%clk 0:01:58.8]} 17... Bf6 {[%clk 0:01:26.6]}
18. Rc5 {[%clk 0:01:55.2]} 18... Bxf5 {[%clk 0:01:08.3]} 19. Rxf5 {[%clk
0:01:56.1]} 19... c6 {[%clk 0:01:03.2]} 20. Rd1 {[%clk 0:01:49.2]} 20... Rad8
{[%clk 0:00:56.3]} 21. Rxd8 {[%clk 0:01:34]} 21... Rxd8 {[%clk 0:00:55.5]} 22.
Bg5 {[%clk 0:01:29.4]} 22... Kg6 {[%clk 0:00:47.9]} 23. Bxf6 {[%clk 0:01:28.6]}
23... gxf6 {[%clk 0:00:48]} 24. Rf4 {[%clk 0:01:27.3]} 24... Re8 {[%clk
0:00:45.4]} 25. Kd2 {[%clk 0:01:25.5]} 25... Re5 {[%clk 0:00:33.8]} 26. f3
{[%clk 0:01:21.7]} 26... exf3 {[%clk 0:00:32.8]} 27. gxf3 {[%clk 0:01:15.1]}
27... Rh5 {[%clk 0:00:32]} 28. h4 {[%clk 0:01:13.3]} 28... Ra5 {[%clk
0:00:31.2]} 29. a4 {[%clk 0:01:11.9]} 29... Rd5+ {[%clk 0:00:28.7]} 30. Ke2
{[%clk 0:01:05]} 30... Rc5 {[%clk 0:00:27.6]} 31. c4 {[%clk 0:01:03.8]} 31... b5
{[%clk 0:00:26.5]} 32. axb5 {[%clk 0:01:02.9]} 32... cxb5 {[%clk 0:00:26]} 33.
cxb5 {[%clk 0:01:02.9]} 33... Rxb5 {[%clk 0:00:25.7]} 34. b4 {[%clk 0:01:00.9]}
34... f5 {[%clk 0:00:24.7]} 35. Kf2 {[%clk 0:00:53.4]} 35... a5 {[%clk
0:00:23.8]} 36. bxa5 {[%clk 0:00:52.9]} 36... Rxa5 {[%clk 0:00:24.7]} 37. Kg3
{[%clk 0:00:50.2]} 37... Ra3 {[%clk 0:00:23.8]} 38. h5+ {[%clk 0:00:50.2]} 38...
Kg5 {[%clk 0:00:22.7]} 39. Kf2 {[%clk 0:00:33.1]} 39... Ra2+ {[%clk 0:00:20.3]}
40. Kg3 {[%clk 0:00:31.4]} 40... Ra3 {[%clk 0:00:18.4]} 41. e4 {[%clk
0:00:28.3]} 41... fxe4 {[%clk 0:00:16.7]} 42. Rxe4 {[%clk 0:00:27.8]} 42... Kxh5
{[%clk 0:00:17.1]} 43. Kf4 {[%clk 0:00:26.7]} 43... Ra5 {[%clk 0:00:14.3]} 44.
Re5+ {[%clk 0:00:19.6]} 44... Rxe5 {[%clk 0:00:13.1]} 45. Kxe5 {[%clk
0:00:20.5]} 45... Kg6 {[%clk 0:00:13.6]} 46. Ke6 {[%clk 0:00:19.8]} 46... Kg7
{[%clk 0:00:13.1]} 47. Ke7 {[%clk 0:00:17]} 47... Kg6 {[%clk 0:00:12.9]} 48. Ke6
{[%clk 0:00:16.9]} 48... Kg7 {[%clk 0:00:12.9]} 49. f4 {[%clk 0:00:15.8]} 49...
Kf8 {[%clk 0:00:11.1]} 50. Kf6 {[%clk 0:00:15.8]} 50... h5 {[%clk 0:00:11]} 51.
Kg5 {[%clk 0:00:15.5]} 51... h4 {[%clk 0:00:10.3]} 52. Kxh4 {[%clk 0:00:15.5]}
52... Kf7 {[%clk 0:00:07]} 53. Kg5 {[%clk 0:00:14.4]} 53... Kg7 {[%clk
0:00:06.9]} 54. f5 {[%clk 0:00:10.7]} 54... Kf7 {[%clk 0:00:06.8]} 55. f6 {[%clk
0:00:10.6]} 55... Kf8 {[%clk 0:00:06.7]} 56. Kg6 {[%clk 0:00:10.6]} 56... Kg8
{[%clk 0:00:06.7]} 57. f7+ {[%clk 0:00:09.9]} 57... Kf8 {[%clk 0:00:06.8]} 58.
Kf6 {[%clk 0:00:10.8]} 1/2-1/2

[Event "*** SCC Grand Prix: Titled Tuesday Blitz"]
[Site "Chess.com"]
[Date "2020.06.09"]
[Round "10"]
[White "Vandros57"]
[Black "bmt011"]
[Result "0-1"]
[WhiteElo "2197"]
[BlackElo "2125"]
[TimeControl "180+1"]
[EndTime "10:58:33 PDT"]
[Termination "bmt011 won on time"]

1. d4 {[%clk 0:03:00.9]} 1... Nf6 {[%clk 0:02:55.9]} 2. Nf3 {[%clk 0:02:59.9]}
2... e6 {[%clk 0:02:55.7]} 3. c4 {[%clk 0:02:58.9]} 3... Bb4+ {[%clk 0:02:54.4]}
4. Bd2 {[%clk 0:02:58]} 4... c5 {[%clk 0:02:53.6]} 5. Bxb4 {[%clk 0:02:56.9]}
5... cxb4 {[%clk 0:02:53.6]} 6. g3 {[%clk 0:02:56.7]} 6... O-O {[%clk
0:02:53.3]} 7. Bg2 {[%clk 0:02:56.4]} 7... d6 {[%clk 0:02:51.7]} 8. O-O {[%clk
0:02:54.7]} 8... a5 {[%clk 0:02:52]} 9. a3 {[%clk 0:02:51.6]} 9... Na6 {[%clk
0:02:49.7]} 10. Nbd2 {[%clk 0:02:49.9]} 10... Re8 {[%clk 0:02:47.2]} 11. Ne1
{[%clk 0:02:46.6]} 11... e5 {[%clk 0:02:43.7]} 12. Nc2 {[%clk 0:02:41.4]} 12...
Bf5 {[%clk 0:02:27.3]} 13. e4 {[%clk 0:02:33]} 13... Bg4 {[%clk 0:02:25.9]} 14.
f3 {[%clk 0:02:30.6]} 14... Be6 {[%clk 0:02:26.2]} 15. d5 {[%clk 0:02:28.5]}
15... Bd7 {[%clk 0:02:26.5]} 16. axb4 {[%clk 0:02:27.2]} 16... axb4 {[%clk
0:02:17.2]} 17. Nb3 {[%clk 0:02:22.8]} 17... Qb6+ {[%clk 0:02:14]} 18. Kh1
{[%clk 0:02:17.8]} 18... Rec8 {[%clk 0:02:14.6]} 19. Qe2 {[%clk 0:02:15]} 19...
Nc7 {[%clk 0:01:58.9]} 20. Ne3 {[%clk 0:02:08.5]} 20... Na6 {[%clk 0:01:51.4]}
21. h4 {[%clk 0:02:00.9]} 21... Nh5 {[%clk 0:01:39.6]} 22. Kh2 {[%clk
0:01:59.1]} 22... g6 {[%clk 0:01:40]} 23. Bh3 {[%clk 0:01:48.9]} 23... Bxh3
{[%clk 0:01:37.3]} 24. Kxh3 {[%clk 0:01:48.5]} 24... Nc5 {[%clk 0:01:31.9]} 25.
Nxc5 {[%clk 0:01:45.3]} 25... Qxc5 {[%clk 0:01:32.4]} 26. b3 {[%clk 0:01:40.8]}
26... Ra6 {[%clk 0:01:18.7]} 27. Nc2 {[%clk 0:01:33.5]} 27... Rf8 {[%clk
0:00:56.3]} 28. Qe3 {[%clk 0:01:21.8]} 28... Rxa1 {[%clk 0:00:33]} 29. Rxa1
{[%clk 0:01:10.6]} 29... b6 {[%clk 0:00:33.3]} 30. Qxc5 {[%clk 0:01:07.1]} 30...
bxc5 {[%clk 0:00:28]} 31. Ra6 {[%clk 0:00:59]} 31... Rd8 {[%clk 0:00:28]} 32.
Ne1 {[%clk 0:00:57.3]} 32... f5 {[%clk 0:00:25]} 33. Ra7 {[%clk 0:00:47.5]}
33... Nf6 {[%clk 0:00:23.5]} 34. exf5 {[%clk 0:00:43.5]} 34... gxf5 {[%clk
0:00:24.1]} 35. Kg2 {[%clk 0:00:39.6]} 35... Rd7 {[%clk 0:00:19.8]} 36. Ra8+
{[%clk 0:00:33.2]} 36... Kg7 {[%clk 0:00:19.3]} 37. Nd3 {[%clk 0:00:30.9]} 37...
Kg6 {[%clk 0:00:19.7]} 38. Kf2 {[%clk 0:00:29.3]} 38... e4 {[%clk 0:00:19.5]}
39. Nf4+ {[%clk 0:00:27.7]} 39... Kh6 {[%clk 0:00:19.7]} 40. Ne6 {[%clk
0:00:25.4]} 40... exf3 {[%clk 0:00:19.6]} 41. Kxf3 {[%clk 0:00:24.4]} 41... Ne4
{[%clk 0:00:20.5]} 42. Kf4 {[%clk 0:00:21.3]} 42... Nd2 {[%clk 0:00:21]} 43.
Kxf5 {[%clk 0:00:20.2]} 43... Rf7+ {[%clk 0:00:21.5]} 44. Kg4 {[%clk 0:00:19]}
44... Nxb3 {[%clk 0:00:21.6]} 45. Kh3 {[%clk 0:00:17.7]} 45... Nd4 {[%clk
0:00:22]} 46. Rg8 {[%clk 0:00:15.8]} 46... Nxe6 {[%clk 0:00:21.3]} 47. dxe6
{[%clk 0:00:15.3]} 47... Re7 {[%clk 0:00:21.6]} 48. Rb8 {[%clk 0:00:11.3]} 48...
Rxe6 {[%clk 0:00:21.5]} 49. Rb6 {[%clk 0:00:09.3]} 49... Kg6 {[%clk 0:00:21.2]}
50. g4 {[%clk 0:00:08.7]} 50... Kf6 {[%clk 0:00:21.8]} 51. Kg3 {[%clk
0:00:08.2]} 51... Ke5 {[%clk 0:00:22.3]} 52. g5 {[%clk 0:00:05.4]} 52... Kd4
{[%clk 0:00:22.9]} 53. Kg4 {[%clk 0:00:05.3]} 53... Kxc4 {[%clk 0:00:23.5]} 54.
h5 {[%clk 0:00:05.2]} 54... Kc3 {[%clk 0:00:23]} 55. g6 {[%clk 0:00:05]} 55...
hxg6 {[%clk 0:00:22.6]} 56. h6 {[%clk 0:00:05.1]} 56... Re1 {[%clk 0:00:22.9]}
57. Kg5 {[%clk 0:00:04.9]} 57... Rg1+ {[%clk 0:00:23]} 58. Kf6 {[%clk
0:00:04.5]} 58... b3 {[%clk 0:00:22.8]} 59. Rxd6 {[%clk 0:00:03.4]} 59... b2
{[%clk 0:00:22.4]} 60. Rb6 {[%clk 0:00:03.2]} 60... Kc2 {[%clk 0:00:22.5]} 61.
Kg7 {[%clk 0:00:02.2]} 61... c4 {[%clk 0:00:22.5]} 62. h7 {[%clk 0:00:01.5]}
62... Rh1 {[%clk 0:00:22]} 0-1